Cogmind - Beta 9.1 @@@ ROGUE MODE // 2019.11.01 @ 21:04:46 Player: fartblaster Result: Destroyed by G-47 Trooper with Particle Gun Performance ------------- Evolutions (2) 1000 Regions Visited (3) 600 Robots Destroyed (38) 190 Value Destroyed (1063) 1063 Prototype IDs (1) 20 Alien Tech Used (0) 0 Bonus (0) 0 TOTAL SCORE: 2873 Bonus ------- None Cogmind --------- Core Integrity 0/550 Matter 285/300 Energy 93/100 System Corruption 0% Temperature Cool (9) Location -8/Materials Parts ------- Power (1) Propulsion (2) Utility (4) High-capacity Storage Unit Improved Signal Interpreter Improved Weapon Shielding Weapon (4) Light Assault Rifle Inventory (12) Light Treads Light Treads Medium Matter Pod (100) Advanced Weight Redist. System Signal Interpreter Improved Weapon Shielding Peak State ------------ Power Ion Engine Propulsion Light Treads Advanced Treads Utility Improved Heat Sink High-capacity Storage Unit Advanced Sensor Array Improved Signal Interpreter Weapon Particle Cannon Improved Light Cannon Grenade Launcher Flail Inventory Ion Engine Light Treads Light Treads Light Treads Light Treads Medium Matter Pod Advanced Weight Redist. System Advanced Sensor Array Signal Interpreter [Rating: 22] Favorites ----------- Power Ion Engine Engine Ion Engine Propulsion Light Treads Treads Light Treads Hover Unit Hover Unit Flight Unit VTOL Module Utility High-capacity Storage Unit Device Advanced Sensor Array Storage High-capacity Storage Unit Processor Targeting Computer Protection Improved Weapon Shielding Weapon Improved Light Cannon Energy Gun Medium Laser Energy Cannon Particle Cannon Ballistic Gun Assault Rifle Ballistic Cannon Improved Light Cannon Launcher Grenade Launcher Impact Weapon Flail Build | -11 -10 -9 -8 ------- Run | Scr Mat Mat Mat Slots Evolved 4 | . . 2 2 Power . | . . . . Propulsion . | . . . . Utility 2 | . . 1 1 Weapon 2 | . . 1 1 Parts Attached 47 | 6 14 12 15 Power 3 | 1 . 1 1 Engine 3 | 1 . 1 1 Core . | . . . . Reactor . | . . . . Propulsion 16 | 2 8 3 3 Treads 12 | 2 4 3 3 Leg . | . . . . Wheel . | . . . . Hover 2 | . 2 . . Flight 2 | . 2 . . Utility 14 | 1 4 3 6 Device 4 | . . 1 3 Storage 4 | 1 3 . . Processor 3 | . 1 2 . Hackware . | . . . . Protection 3 | . . . 3 Artifact . | . . . . Weapon 14 | 2 2 5 5 Energy Gun 5 | 2 1 . 2 Energy Cannon 2 | . . 1 1 Ballistic Gun 2 | . 1 . 1 Ballistic Cannon 2 | . . 2 . Launcher 1 | . . . 1 Special Weapon . | . . . . Impact Weapon 2 | . . 2 . Slashing Weapon . | . . . . Piercing Weapon . | . . . . Special Melee Weapon . | . . . . Unidentified Prototypes 1 | . . . 1 Parts Lost 18 | . . 1 17 Power 3 | . . 1 2 Propulsion 4 | . . . 4 Utility 4 | . . . 4 Weapon 7 | . . . 7 Highest Loss Streak 11 | . . 1 11 Average Slot Usage (%) 93 | . 98 94 83 Engine 9 | . 14 8 6 Treads 21 | . 25 22 15 Device 3 | . . 1 11 Storage 11 | . 13 11 9 Processor 14 | . 13 18 9 Energy Gun 9 | . 22 4 . Energy Cannon 4 | . . 7 6 Ballistic Gun 4 | . 5 4 . Ballistic Cannon 5 | . . 9 6 Launcher 1 | . . . 6 Impact Weapon 4 | . . 6 8 Naked Turns . | . . . . Heaviest Build 53 | 12 41 49 53 Greatest Support 42 | 40 40 40 42 Greatest Overweight (x) 13 | . 3 1 13 Average Overweight (x) . | . . . 1 Largest Inventory Capacity 14 | 6 14 12 12 Average Capacity 11 | 5 11 12 12 Most Carried 12 | 1 12 12 11 Average Carried 7 | . 5 8 9 Final Capacity 12 | 6 12 12 12 Final Carried 9 | 1 8 9 6 Class Distribution -------------------- 83% | Mutant 14% | Gunner Dominant Class ---------------- Mutant | -10/Materials Mutant | -9/Materials Mutant | -8/Materials Resources | -11 -10 -9 -8 ----------- Run | Scr Mat Mat Mat Matter Collected 946 | 221 77 474 174 Remotely . | . . . . Salvage Created 1141 | . 119 507 515 Parts 84 | . 15 29 40 Haulers Intercepted . | . . . . Recyclers Shooed . | . . . . Parts Field Recycled . | . . . . Retrieved Matter . | . . . . Parts Self-Destructed . | . . . . Prevented . | . . . . Kills | -11 -10 -9 -8 ------- Run | Scr Mat Mat Mat Combat Hostiles Destroyed 24 | . 2 10 12 Melee 2 | . . . 2 Guns 3 | . 2 1 . Cannons 15 | . . 9 6 AOE 4 | . . . 4 Classes Destroyed 11 | . 3 4 4 Worker 2 | . 1 1 . Builder 3 | . . . 3 Tunneler 1 | . . 1 . Recycler 1 | . . . 1 Watcher 7 | . 3 2 2 Swarmer 5 | . 2 . 3 Grunt 10 | . . 6 4 Brawler 1 | . . 1 . Duelist 1 | . . . 1 Sentry 6 | . . 3 3 Hunter 1 | . . . 1 Best Kill Streak 10 | . 2 6 10 Combat Bots Only 5 | . 2 4 5 Max Kills in Single Turn 6 | . 1 2 6 Gunslinging . | . . . . Exploded 4 | . . . 4 Melee 1 | . . . 1 Uniques/NPCs Destroyed . | . . . . Combat | -11 -10 -9 -8 -------- Run | Scr Mat Mat Mat Damage Taken 2502 | . 106 358 2038 Core 625 | . 7 67 551 Absorbed by Shields . | . . . . Core Remaining (%) 93 | 100 97 83 . Volleys Fired 79 | . 12 28 39 Largest 3 | . 2 3 2 Hottest 146 | . 90 146 107 Shots Fired 152 | . 24 74 54 Gun 46 | . 24 12 10 Cannon 104 | . . 62 42 Launcher 2 | . . . 2 Special . | . . . . Kinetic 64 | . . 44 20 Thermal 74 | . 12 30 32 Explosive 2 | . . . 2 Electromagnetic 12 | . 12 . . Robot Hit Streak 14 | . 3 14 5 Robot Miss Streak 4 | . 3 4 3 Penetration Max . | . . . . Secondary Targets 1 | . 1 . . Max Gunslinging Chain 1 | . 1 . . Shots Hit Robots 84 | . 11 37 36 Core Hits 52 | . 7 17 28 Critical Hits 2 | . . . 2 Critical Kills 1 | . . . 1 Critical Parts Destroyed 1 | . . . 1 Melee Attacks 5 | . . . 5 Impact 5 | . . . 5 Slashing . | . . . . Piercing . | . . . . Sneak Attacks . | . . . . Combat Hostiles . | . . . . Follow-up Attacks . | . . . . Damage Inflicted 2311 | . 193 655 1463 Guns 331 | . 165 101 65 Cannons 1086 | . . 554 532 Explosions 738 | . 21 . 717 Melee 149 | . . . 149 Ramming 7 | . 7 . . Kinetic 468 | . . 317 151 Thermal 1348 | . 57 338 953 Explosive 210 | . . . 210 Electromagnetic 129 | . 129 . . Impact 149 | . . . 149 Slashing . | . . . . Piercing . | . . . . Highest Corruption 2 | . 2 . . Average Corruption 2 | . 2 . . Corruption Purged . | . . . . Effects 1 | . 1 . . Message Errors 1 | . 1 . . Overload Shots . | . . . . Overflow Damage 27 | . . . 27 Projectiles 8 | . . . 8 Explosions 19 | . . . 19 Melee . | . . . . Knockbacks 3 | . . 1 2 Impact 1 | . . . 1 Kinetic 2 | . . 1 1 Secondary . | . . . . Self-Inflicted Damage 122 | . . . 122 Shots 3 | . . . 3 Rammed 1 | . 1 . . Targets Rammed 1 | . 1 . . Kicked . | . . . . Crushed . | . . . . Highest Temperature 413 | . 72 413 171 Average Temperature 90 | . 32 125 65 Received Heat Transfer 948 | . . 165 783 Effects 2 | . . 2 . Damage (minor) 2 | . . 2 . Siege Activations . | . . . . Robots Corrupted . | . . . . Combat Hostiles . | . . . . Parts Fried 1 | . 1 . . Impact Corruptions . | . . . . Robots Melted . | . . . . Combat Hostiles . | . . . . Parts Melted 2 | . . 1 1 Heat Transferred 2004 | . 137 666 1201 Parts Sabotaged . | . . . . Parts Stolen . | . . . . Parts Stripped . | . . . . Power Chain Reactions 1 | . 1 . . Missiles Intercepted . | . . . . Alert | -11 -10 -9 -8 ------- Run | Scr Mat Mat Mat Peak Influence 386 | . 96 227 386 Average Influence 92 | . 40 81 205 Maximum Alert Level 1 | . . 1 1 Low Security (%) 86 | . . . . Level 1 13 | . . . . Level 2 . | . . . . Level 3 . | . . . . Level 4 . | . . . . Level 5 . | . . . . High Security . | . . . . Max Security . | . . . . Squads Dispatched 2 | . . 1 1 Investigation . | . . . . Extermination . | . . . . Reinforcement 2 | . . 1 1 Assault . | . . . . Garrison . | . . . . Intercept . | . . . . Construction Impeded . | . . . . Haulers Reinforced . | . . . . Stealth | -11 -10 -9 -8 --------- Run | Scr Mat Mat Mat Distress Signals 7 | . . 3 4 Communications Jammed . | . . . . Distress Signals . | . . . . Times Spotted 45 | . 7 19 19 Peak Tracking Total 9 | . 3 4 9 Tactical Retreats 1 | . 1 . . Traps | -11 -10 -9 -8 ------- Run | Scr Mat Mat Mat Traps Triggered 2 | . 2 . . Indirectly . | . . . . Trap Hack Attempts . | . . . . Triggered . | . . . . Disarmed . | . . . . Reprogrammed . | . . . . Reused . | . . . . Traps Extracted . | . . . . Installed . | . . . . Triggered . | . . . . Machines | -11 -10 -9 -8 ---------- Run | Scr Mat Mat Mat Machines Disabled 4 | . . 2 2 Max in Single Turn 1 | . . 1 1 Machines Sabotaged . | . . . . Garrisons Compromised . | . . . . Overloaded Fab Kills . | . . . . Fab Network Shutdowns . | . . . . Hacking | -11 -10 -9 -8 --------- Run | Scr Mat Mat Mat Machines Accessed 1 | . 1 . . Terminals 1 | . 1 . . Fabricators . | . . . . Repair Stations . | . . . . Recycling Units . | . . . . Scanalyzers . | . . . . Garrison Access . | . . . . Total Hacks 1 | . 1 . . Successful 1 | . 1 . . Failed . | . . . . Catastrophic . | . . . . Database Lockouts . | . . . . Manual . | . . . . Terminals 1 | . 1 . . Fabricators . | . . . . Repair Stations . | . . . . Recycling Units . | . . . . Scanalyzers . | . . . . Garrison Access . | . . . . Terminal Hacks 1 | . 1 . . Record 1 | . 1 . . Fabricator Hacks . | . . . . Repair Station Hacks . | . . . . Recycling Unit Hacks . | . . . . Scanalyzer . | . . . . Garrison Access Hacks . | . . . . Unauthorized Hacks . | . . . . Terminals . | . . . . Fabricators . | . . . . Repair Stations . | . . . . Recycling Units . | . . . . Scanalyzers . | . . . . Garrison Access . | . . . . Data Cores Recovered . | . . . . Used . | . . . . Hacking Detections 1 | . 1 . . Full Trace Events . | . . . . Feedback Events . | . . . . Feedback Blocked . | . . . . Robot Schematics Acquired . | . . . . Robots Built . | . . . . Matter . | . . . . Time . | . . . . Total Robot Build Rating . | . . . . Part Schematics Acquired . | . . . . Parts Built . | . . . . Matter . | . . . . Time . | . . . . Total Part Build Rating . | . . . . Parts Repaired . | . . . . Time . | . . . . Parts Recycled . | . . . . Recycled Matter . | . . . . Retrieved Matter . | . . . . Retrieved Components . | . . . . Parts Scanalyzed . | . . . . Part Schematics Acquired . | . . . . Parts Damaged . | . . . . Bothacking | -11 -10 -9 -8 ------------ Run | Scr Mat Mat Mat Used RIF Installer . | . . . . Robots Hacked . | . . . . Non-combat . | . . . . Combat . | . . . . Robot Hacks Applied . | . . . . Relay Couplers Released . | . . . . Robots Rewired . | . . . . Allies Hacked . | . . . . Hacks Repelled . | . . . . Allies | -11 -10 -9 -8 -------- Run | Scr Mat Mat Mat Total Allies . | . . . . Largest Group . | . . . . Highest-Rated Group . | . . . . Highest-Rated Ally . | . . . . Total Orders . | . . . . Ally Attacks . | . . . . Total Damage . | . . . . Kills . | . . . . Allies Corrupted . | . . . . Allies Melted . | . . . . Intel | -11 -10 -9 -8 ------- Run | Scr Mat Mat Mat Robot Analysis Total . | . . . . Derelict Logs Recovered . | . . . . Drone Launches . | . . . . Drone Recoveries . | . . . . Exploration | -11 -10 -9 -8 ------------- Run | Scr Mat Mat Mat Turns Passed 1876 | 76 622 757 421 Spaces Moved 868 | 49 327 347 145 Core 21 | 11 5 . 5 Treads 817 | 38 292 347 140 Legs . | . . . . Wheels . | . . . . Hover 12 | . 12 . . Flight 18 | . 18 . . Fastest Speed 37 | 50 37 160 152 Average Speed 172 | 135 165 177 186 Slowest Speed 700 | 160 236 180 700 Overloaded Moves . | . . . . Propulsion Burnouts . | . . . . Robots Hopped . | . . . . Cave-ins Triggered . | . . . . Exploration Rate (%) 26 | 3 56 29 19 Regions Visited 3 Branch Regions . Pre-discovered Areas . | . . . . Known Exits Taken 1 | . . 1 . Unknown Exits Taken 2 | 1 1 . . Scrap Searched . | . . . . Spaces Dug . | . . . . Terrain Destroyed 32 | . 3 3 26 Melee . | . . . . Projectile 6 | . . 3 3 AOE 26 | . 3 . 23 Actions | -11 -10 -9 -8 --------- Run | Scr Mat Mat Mat Total 1095 | 56 380 427 232 Wait 47 | . 2 22 23 Move 865 | 48 326 346 145 Hop . | . . . . Pick Up 33 | 2 17 9 5 Fast Attach 14 | 5 4 2 3 Attach 15 | 1 2 3 9 Detach 4 | . 2 2 . Swap 18 | . 8 7 3 Drop 14 | . 6 8 . Fire 79 | . 12 28 39 Melee 5 | . . . 5 Ram . | . . . . Kick . | . . . . Crush 1 | . 1 . . Escape Stasis . | . . . . Rewire . | . . . . Trap . | . . . . Miscellaneous . | . . . . Route ------- -11/Scrapyard -10/Materials (discovered 2 exits: *Mat / [*Min]) -9/Materials -8/Materials History --------- Turn | Location | Event 7 | -11/Scrapyard | Discovered new exit (range 15) 77 | -11/Scrapyard | Entered Materials 205 | -10/Materials | Discovered new exit (range 15) 308 | -10/Materials | Build established: Mutant 629 | -10/Materials | Discovered new exit (range 16) 699 | -10/Materials | Entered another Materials area 699 | -9/Materials | Evolved 2 slots: Utility x1, Weapon x1 1372 | -9/Materials | Discovered new exit (range 15) 1454 | -9/Materials | Identified exit to Materials 1456 | -9/Materials | Entered another Materials area 1456 | -8/Materials | Evolved 2 slots: Utility x1, Weapon x1 1817 | -8/Materials | Lost 11 parts (2p2n2u5w) 1841 | -8/Materials | Core integrity fell below 50% 1859 | -8/Materials | Core integrity fell below 20% 1877 | -8/Materials | Destroyed by G-47 Trooper with Particle Gun Last Messages --------------- 01828_ S-10 Pest suffers critical hit. 01828_ Destroyed Lgt. Ion Engine. 01830_ S-10 Pest suffers critical hit. 01830_ S-10 Pest destroyed. 01834_ Destroyed Flight Unit. 01834_ Lgt. Treads destroyed. 01836_ Adv. Beam Cannon destroyed. 01850_ G-47 Trooper destroyed. 01851_ Flail destroyed. 01856_ K-01 Serf collects debris. 01859_ Acquired 10 matter. 01859_ K-01 Serf collects debris. 01860_ Acquired 5 matter. 01861_ K-01 Serf collects debris. 01863_ K-01 Serf destroyed. 01864_ K-01 Serf collects debris. 01866_ Acquired Lgt. Assault Rifle. 01867_ K-01 Serf collects debris. 01871_ Adv. Sensor Array destroyed. 01875_ K-01 Serf collects debris. Map ----- +----------------------------------------------------+ | ????????????????????????????????????????????????? | | ????????????????????????????????????????????????? | | ????????????????????????????????????????????????? | | ????????????????????????????????????????????????? | | ????????????????????????????????????????????????? | | ????????????????????????????????????????????????? | | ????????????????????????????????????????????????? | | ??????????????????????? ??????????????????????? | | ??????????????????????? ??????????????????????? | | ??????????????????????? ??????????????????????? | | ??????????????????????# #?????????????????????? | | ??????????????????????# #?????????????????????? | | ??????????????????????# #?????????????????????? | | ??????????????????????? #?????????????????????? | | ???????????????????????] ??????????????????????? | | ??????????????????????? ??????????????????????? | | ??????????????????????? [??????????????????????? | | ??????????????????????? ??????????????????????? | | ???????????????????????/ ??????????????????????? | | ???????????????????????# #??????????????????????? | | ???????????????????????# #??????????????????????? | | ????????????????????#### ##### ????????? | | ????????????????????# m%= T ??????????? | | ????????????????????# ##g##### ????????? | | ????????????????????# #=*%s #???????????????????? | | ????????????????????# #%[@=]#???????????????????? | | ????????????????????# #%*k #???????????????????? | | ????????????????????# #! #???????????????????? | | ????????????????????# # " " #???????????????????? | | ????????????????????# # "R" #???????????????????? | | ???????????????????## # """ #???????????????????? | | ?????????? ????????## #######???????????????????? | | ????????? ???????## #?????????????????????????? | | ???????? ?######/####??????????????????????? | | ???????? # % *%=#??????????????????????? | | ???????" # * !!%##??????????????????????? | | ???????" # %%##??????????????????????? | | ??????? # =* !=#??????????????????????? | | ??????? " = % #??????????????????????? | | ??????? " %! #??????????????????????? | | ??????? [ " #??????????????????????? | | ???????? " "#??????????????????????? | | ???????" # % ##??????????????????????? | | ??????"" ##" "#########???????????????? | | ?????"" % %! # #???????????????? | | ???? # """#???????????????? | | ???? """ # R"#???????????????? | | ????? """ # """#???????????????? | | ????? """ # #???????????????? | | ?????? # """ #???????????????? | +----------------------------------------------------+ Best States ------------- Heat Dissipation 45 Energy Generation 10 Energy Capacity 250 Matter Stores 300 Matter Capacity 300 Sight Range 16 Robot Scan Range 16 Terrain Scan Density 85 Armor Coverage 150 Weapon Shielding 66 Evasion (%) 62 Targeting Accuracy 5 Recoil Reduction 2 Item Schematics ----------------- None Robot Schematics ------------------ None Fabricated ------------ Nothing Alien Tech Used ----------------- None Achievements -------------- I Spy Challenges ------------ None Game ------ Seed DecoderHypercooledWarhead Manual? 0 Play Time 00:28:35 Cumulative 7.5 hours Start 2019.11.01 @ 20:36:40 End 2019.11.01 @ 21:04:46 Sessions 1 Manual Loads 0 Difficulty Rogue Special Mode None Game No. 24 Rogue 24 Adventurer 0 Explorer 0 Win Type - Total 0 Types 0/0/0/0/0/0/0 Lore% 1 Gallery% 12 Achievement% 7 Wizard Run 0 Options --------- ASCII 0 Keyboard 1 Movement Numpad Keybinds 0 Fullscreen 1 Font 18/SmallcapsGlow Map View 76x50 Tactical HUD 1 Map Filters NONE Filters NONE Steam 1 RUN: cdf089f7-5034-4a2c-a3cf-813a252c25c8